bitfinex/quotes_SOLUSD_20260228
["timestamp","ask_amount","ask_price","bid_price","bid_amount"]
[1772275677217,31.66747646,78.946,78.92,6.41029994]
[1772275677218,1.71556142,78.942,78.92,6.41029994]
[1772275678754,0.28432314,78.929,78.871,0.97205693]
[1772275678925,6.41029994,78.91,78.871,0.97205693]
[1772275679131,44.35488979,78.909,78.871,0.97205693]
[1772275679333,6.41029994,78.9,78.871,0.97205693]
[1772275679665,6.41029994,78.9,78.864,0.9537075]
[1772275680158,6.41029994,78.89,78.854,12.68166484]
[1772275680628,1.71556142,78.889,78.854,12.68166484]
[1772275680944,1.71556142,78.889,78.854,13.617669]
[1772275681421,12.67619916,78.888,78.86,6.41029994]
[1772275681618,12.67619916,78.888,78.861,0.93344185]
[1772275682544,6.41029994,78.91,78.871,1.63646668]
[1772275682722,6.41029994,78.96,78.881,1.63646668]
[1772275682723,12.67025657,78.925,78.881,1.63646668]
[1772275682925,19.0797672,78.93,78.891,1.63646668]
[1772275683132,12.66946726,78.93,78.901,1.63646668]
[1772275683342,31.67083551,78.937,78.903,1.63646668]
[1772275684648,1.71556142,78.936,78.904,14.31009539]
[1772275684849,1.71556142,78.936,78.905,1.63646668]
[1772275685228,1.71556142,78.919,78.882,1.63646668]
[1772275686252,1.71556142,78.917,78.883,1.63646668]
[1772275686825,0.28432314,78.929,78.883,1.63646668]
[1772275686826,1.71556142,78.928,78.883,1.63646668]
[1772275687026,1.71556142,78.928,78.882,44.37007174]
[1772275687027,1.71556142,78.928,78.891,1.63646668]
[1772275687348,1.71556142,78.919,78.891,1.63646668]
[1772275688748,14.38694184,78.918,78.891,1.63646668]
[1772275689141,1.71556142,78.917,78.891,1.63646668]
[1772275691354,12.67170155,78.916,78.891,1.63646668]
[1772275691530,1.42473801,78.915,78.891,1.63646668]
[1772275693149,102.3,78.942,78.893,1.45955891]
[1772275693150,12.67125509,78.919,78.893,1.45955891]
[1772275693753,14.0959931,78.919,78.893,1.45955891]
[1772275694335,1.42473801,78.934,78.901,1.45955891]
[1772275695163,1.42473801,78.932,78.903,1.45955891]
[1772275697162,1.42473801,78.932,78.892,31.68889114]
[1772275697163,1.42473801,78.922,78.896,1.45955891]
[1772275698544,1.42473801,78.92,78.896,1.45955891]
[1772275700742,1.42473801,78.918,78.9,3.2]
[1772275702259,1.42473801,78.916,78.9,3.2]
[1772275702858,1.42473801,78.924,78.901,1.45955891]
[1772275703034,12.66672577,78.947,78.911,1.45955891]
[1772275703234,1.42473801,78.946,78.921,1.45955891]
[1772275703447,1.70906115,78.945,78.921,1.45955891]
[1772275704254,12.66720713,78.944,78.921,1.45955891]
[1772275705156,1.42473801,78.943,78.921,1.45955891]
[1772275706963,1.42473801,78.949,78.921,1.45955891]
[1772275707139,1.42473801,78.949,78.923,1.45955891]
[1772275708165,1.42473801,78.949,78.922,12.67073819]
[1772275708166,1.42473801,78.963,78.94,6.41146689]
[1772275708338,1.42473801,78.963,78.922,44.34758368]
[1772275708339,1.42473801,78.963,78.923,1.45955891]
[1772275708949,1.42473801,78.957,78.925,1.45955891]
[1772275710656,1.42473801,78.955,78.93,3.3]
[1772275712468,1.42473801,78.949,78.93,3.3]
[1772275713167,1.42473801,78.947,78.93,3.3]
[1772275713747,1.42473801,78.947,78.919,1.45955891]
[1772275717362,1.42473801,78.945,78.919,1.45955891]
[1772275718955,1.42473801,78.943,78.919,1.45955891]
[1772275722273,12.66752805,78.942,78.919,1.45955891]
[1772275722454,1.17548997,78.941,78.913,1.12013991]
[1772275723671,1.17548997,78.947,78.913,1.12013991]
[1772275724064,12.66593175,78.952,78.921,1.12013991]
[1772275724254,12.66624445,78.95,78.922,12.67073819]
[1772275724459,1.17548997,78.949,78.922,13.7908781]
[1772275724683,1.17548997,78.949,78.923,1.12013991]
[1772275726784,1.17548997,78.947,78.925,1.12013991]
[1772275726986,12.66600354,78.952,78.93,6.41146689]
[1772275727195,31.65820361,78.969,78.932,1.12013991]
[1772275727485,1.17548997,78.968,78.932,1.12013991]
[1772275728380,1.17548997,78.966,78.934,1.12013991]
[1772275729284,1.17548997,78.966,78.933,12.66897241]
[1772275729285,1.17548997,78.998,78.951,1.12013991]
[1772275729675,1.17548997,78.994,78.951,1.12013991]
[1772275729877,1.17548997,78.994,78.935,0.28432314]
[1772275729878,1.17548997,78.994,78.961,1.12013991]
[1772275730277,1.17548997,78.998,78.961,1.12013991]
[1772275730482,13.83419852,78.997,78.963,1.12013991]
[1772275730786,1.17548997,78.996,78.963,1.12013991]
[1772275732794,1.17548997,78.994,78.965,1.12013991]
[1772275735274,1.17548997,78.992,78.965,1.12013991]
[1772275736182,1.17548997,78.992,78.967,1.12013991]
[1772275737399,1.17548997,78.99,78.967,1.12013991]
[1772275738497,1.17548997,78.995,78.969,1.12013991]
[1772275738675,1.17548997,78.993,78.969,1.12013991]
[1772275739078,12.65678593,79.009,78.981,1.12013991]
[1772275739477,0.1,79.01,78.983,1.12013991]
[1772275739781,1.27548997,79.01,78.983,1.12013991]
[1772275740903,1.27548997,79.01,78.96,1.12013991]
[1772275740904,1.17548997,78.997,78.96,1.12013991]
[1772275741108,0.1,79.01,78.952,1.12013991]
[1772275741109,1.17548997,78.989,78.952,1.12013991]
[1772275741477,1.17548997,78.987,78.954,1.12013991]
[1772275743901,1.17548997,78.987,78.95,6.41146689]
[1772275743902,1.17548997,78.985,78.956,1.12013991]
[1772275746407,1.17548997,78.983,78.956,1.12013991]
[1772275746898,1.17548997,78.979,78.949,1.12013991]
[1772275747085,1.17548997,78.979,78.948,12.66652746]
[1772275747086,1.17548997,78.979,78.951,1.12013991]
[1772275750191,12.6617539,78.978,78.953,1.12013991]
[1772275751005,1.17548997,78.979,78.953,1.12013991]
[1772275751905,12.66156327,78.98,78.953,1.12013991]
[1772275752602,0.97228212,78.983,78.955,1.02660388]
[1772275752799,12.65989071,78.99,78.961,1.02660388]
[1772275753306,63.27762379,79.017,78.954,44.32960964]
[1772275753307,0.97228212,79.007,78.971,1.02660388]
[1772275756209,0.97228212,79.005,78.973,1.02660388]
[1772275756515,0.97228212,79.005,78.981,1.02660388]
[1772275758795,0.97228212,79.005,78.982,12.66111265]
[1772275758990,0.97228212,79.005,78.983,1.02660388]
[1772275759215,12.65758695,79.004,78.983,1.02660388]
[1772275759926,13.62986907,79.004,78.983,1.02660388]
[1772275760601,0.97228212,79.003,78.983,1.02660388]
[1772275761002,0.97228212,79.009,78.977,1.02660388]
[1772275761213,0.97228212,79.009,78.971,13.68948012]
[1772275761521,0.97228212,78.989,78.952,1.02660388]
[1772275762706,0.97228212,78.987,78.952,1.02660388]
[1772275763307,0.97228212,78.987,78.954,1.02660388]
[1772275764802,0.97228212,78.985,78.954,1.02660388]
[1772275764999,0.97228212,78.985,78.944,31.6679619]
[1772275765000,0.97228212,79.002,78.971,1.02660388]
[1772275765221,0.97228212,79.002,78.981,1.02660388]
[1772275766522,12.65806761,79.001,78.981,1.02660388]
[1772275767824,13.63034973,79.001,78.981,1.02660388]
[1772275768300,0.97228212,79.007,78.981,1.02660388]
[1772275769617,0.97228212,79.005,78.981,1.02660388]
[1772275770109,0.97228212,79.003,78.981,1.02660388]
[1772275770803,0.97228212,79.003,78.976,1.02660388]
[1772275771415,0.97228212,79.003,78.972,12.66265653]
[1772275771416,0.97228212,79.003,78.981,1.02660388]
[1772275771624,0.97228212,79.001,78.973,1.02660388]
[1772275772627,13.62950243,79.007,78.981,1.02660388]
[1772275772845,0.1,79.01,78.991,1.02660388]
[1772275773002,1.07228212,79.02,79.0,7.43151594]
[1772275773330,12.6503814,79.049,79.001,1.02660388]
[1772275773506,6.40491206,79.04,79.001,1.02660388]
[1772275773708,12.65198193,79.039,79.003,1.02660388]
[1772275775309,0.97228212,79.038,79.003,1.02660388]
[1772275776021,0.97228212,79.036,79.005,1.02660388]
[1772275778120,0.97228212,79.034,79.005,1.02660388]
[1772275779026,0.97228212,79.034,79.007,1.02660388]
[1772275780030,12.6503814,79.049,79.013,1.02660388]
[1772275780232,13.62266352,79.049,79.013,1.02660388]
[1772275782130,0.95355387,79.048,79.013,1.02660388]
[1772275783145,0.1,79.05,79.021,0.93950736]
[1772275783317,0.1,79.05,79.031,0.93950736]
[1772275783633,0.1,79.05,79.03,6.40491206]
[1772275783634,0.94733175,79.068,79.035,0.93950736]
[1772275783930,0.94733175,79.068,79.031,0.93950736]
[1772275784117,0.94733175,79.068,79.041,0.93950736]
[1772275786432,6.50491206,79.07,79.042,13.59100909]
[1772275786433,0.94733175,79.066,79.042,13.59100909]
[1772275786814,0.94733175,79.066,79.017,3.69383402]
[1772275786815,0.94733175,79.059,79.023,0.93950736]
[1772275788236,0.94733175,79.059,79.031,0.93950736]
[1772275788439,0.94733175,79.059,79.033,0.93950736]
[1772275788440,0.94733175,79.058,79.033,0.93950736]
[1772275790942,0.94733175,79.056,79.021,0.93950736]
[1772275792346,0.94733175,79.054,79.023,0.93950736]
[1772275793748,44.2729745,79.055,79.02,19.50131109]
[1772275793749,0.94733175,79.049,79.02,20.44081845]
[1772275794741,6.40491206,79.05,79.01,6.40491206]
[1772275794742,0.28432314,79.046,79.01,6.40491206]
[1772275794945,0.94733175,79.039,79.001,0.93950736]
[1772275795533,0.94733175,79.039,79.011,0.93950736]
[1772275796534,13.59947375,79.038,79.012,0.93950736]
[1772275797648,0.94733175,79.037,79.012,0.93950736]
[1772275797826,0.94733175,79.044,79.012,0.93950736]
[1772275799147,0.94733175,79.044,79.013,12.65614519]
[1772275799454,0.94733175,79.044,79.014,0.93950736]
[1772275800152,0.94733175,79.051,79.021,0.93950736]
[1772275800446,1.04733175,79.07,79.041,0.93950736]
[1772275800829,12.64757044,79.067,79.041,0.93950736]
[1772275801027,0.94733175,79.066,79.031,0.93950736]
[1772275801234,0.28432314,79.065,79.031,0.93950736]
[1772275801436,0.28432314,79.065,79.015,44.29538694]
[1772275801437,0.94733175,79.065,79.041,0.93950736]
[1772275801932,0.94733175,79.065,79.031,0.93950736]
[1772275802256,0.94733175,79.065,79.03,6.40491206]
[1772275802257,13.59531313,79.064,79.033,0.93950736]
[1772275802456,0.94733175,79.063,79.033,0.93950736]
[1772275804052,0.94733175,79.063,79.032,12.65310254]
[1772275804454,0.94733175,79.061,79.03,6.40491206]
[1772275804638,0.94733175,79.049,79.019,13.59453676]
[1772275805850,0.94733175,79.049,79.02,0.93950736]
[1772275806159,0.94733175,79.047,79.02,0.93950736]
[1772275806763,0.94733175,79.047,79.022,0.93950736]
[1772275808033,0.94733175,79.045,79.022,0.93950736]
[1772275808741,0.94733175,79.091,79.041,0.38057554]
[1772275808937,0.94733175,79.091,79.06,6.40491206]
[1772275809552,0.94733175,79.091,79.061,0.37703795]
[1772275809856,0.94733175,79.091,79.07,6.40491206]
[1772275810054,0.94733175,79.091,79.071,12.64686168]
[1772275810753,0.94733175,79.091,79.07,6.40491206]
[1772275810958,0.87059008,79.089,79.07,6.40491206]
[1772275812547,0.87059008,79.089,79.071,12.64686168]
[1772275815152,0.1,79.11,79.081,0.36375603]
[1772275815354,0.1,79.11,79.1,6.40491206]
[1772275815738,0.87059008,79.118,79.1,6.40491206]
[1772275817056,200.57711647,79.14,79.111,12.64046719]
[1772275817057,0.87059008,79.127,79.111,12.64046719]
[1772275817265,0.87059008,79.127,79.11,6.40491206]
[1772275817672,0.87059008,79.138,79.11,6.40491206]
[1772275818036,0.87059008,79.138,79.111,12.64046719]
[1772275818238,0.87059008,79.138,79.11,6.40491206]
[1772275819245,0.87059008,79.136,79.11,6.40491206]
[1772275819848,0.87059008,79.129,79.1,6.40491206]
[1772275820261,0.87059008,79.129,79.092,12.64346959]
[1772275821154,0.87059008,79.119,79.09,6.40491206]
[1772275822143,0.87059008,79.119,79.09,19.04872709]
[1772275822663,0.87059008,79.127,79.091,0.39267049]
[1772275822858,0.87059008,79.127,79.09,12.64381503]
[1772275822859,0.87059008,79.126,79.11,6.40491206]
[1772275823245,0.87059008,79.126,79.11,6.38172671]
[1772275824939,0.87059008,79.124,79.1,6.38172671]
[1772275825263,0.87059008,79.122,79.1,6.38172671]
[1772275826755,12.63690265,79.134,79.11,6.38172671]
[1772275827657,0.1,79.14,79.11,6.38172671]
[1772275828052,0.1,79.14,79.11,8.08172671]
[1772275828264,0.1,79.14,79.11,1.7]
[1772275828467,6.48172671,79.14,79.11,1.7]
[1772275828663,0.1,79.14,79.11,8.08172671]
[1772275828967,0.87059008,79.139,79.11,1.7]
[1772275829151,0.87059008,79.139,79.11,8.08172671]
[1772275830569,0.87059008,79.137,79.11,8.08172671]
[1772275831864,0.87059008,79.137,79.12,6.38172671]
[1772275832070,31.5821908,79.159,79.13,7.27247802]
[1772275832071,0.87059008,79.154,79.13,7.27247802]
[1772275832257,0.87059008,79.154,79.131,0.89075131]
[1772275832459,0.1,79.16,79.14,6.38172671]
[1772275832647,0.1,79.16,79.12,6.38172671]
[1772275832648,0.1,79.17,79.15,6.38172671]
[1772275832649,0.87059008,79.167,79.15,6.38172671]
[1772275832846,0.87059008,79.167,79.147,3.54e-06]
[1772275833174,0.87059008,79.167,79.15,2.63e-06]
[1772275833465,0.87059008,79.167,79.14,6.38172671]
[1772275833666,0.1,79.17,79.12,6.38172671]
[1772275833667,0.1,79.17,79.15,6.38172671]
[1772275833874,0.97059008,79.17,79.14,6.38172671]
[1772275834574,0.87059008,79.168,79.14,8.08172671]
[1772275834874,12.63120665,79.169,79.14,0.26109245]
[1772275834875,6.38172671,79.16,79.14,0.26109245]
[1772275835064,6.38172671,79.16,79.12,7.30495888]
[1772275835455,6.38172671,79.16,79.12,6.38172671]
[1772275836676,6.38172671,79.15,79.111,0.92323217]
[1772275837361,44.4991313,79.159,79.121,0.92323217]
[1772275837868,6.38172671,79.15,79.121,0.92323217]
[1772275838653,12.63439841,79.149,79.121,0.92323217]
[1772275839478,44.22039444,79.149,79.121,0.92323217]
[1772275841286,0.0205858,79.149,79.111,0.92960862]
[1772275842579,0.02651833,79.139,79.102,0.92323217]
[1772275842765,0.02651833,79.138,79.102,0.92323217]
[1772275842971,0.02651833,79.129,79.096,0.92323217]
[1772275843984,0.02651833,79.129,79.1,6.38172671]
[1772275844168,0.02651833,79.129,79.096,0.92323217]
[1772275844890,0.03231536,79.128,79.096,0.92323217]
[1772275846094,0.93349233,79.109,79.07,6.38172671]
[1772275846783,0.93349233,79.097,79.062,56.9]
[1772275847087,0.93349233,79.097,79.07,6.38172671]
[1772275847283,0.93349233,79.097,79.062,56.9]
[1772275847681,0.93349233,79.097,79.06,6.38172671]
[1772275847995,0.93349233,79.097,79.061,0.86964456]
[1772275848286,0.93349233,79.095,79.061,0.86964456]
[1772275848481,0.93349233,79.095,79.041,31.62879567]
[1772275848482,0.93349233,79.079,79.046,0.86964456]
[1772275848679,0.93349233,79.079,79.014,63.27969669]
[1772275848680,0.93349233,79.086,79.061,0.86964456]
[1772275852594,12.64462287,79.085,79.061,0.86964456]
[1772275852988,0.93349233,79.084,79.061,0.86964456]
[1772275853790,12.64462287,79.085,79.061,0.86964456]
[1772275853996,0.93349233,79.084,79.061,0.86964456]
[1772275854874,0.93349233,79.112,79.071,0.86964456]
[1772275855076,0.93349233,79.109,79.07,6.38172671]
[1772275855279,0.93349233,79.099,79.068,0.86964456]
[1772275856895,0.93349233,79.079,79.051,0.86964456]
[1772275857786,0.93349233,79.079,79.045,0.86964456]
[1772275858197,0.93349233,79.079,79.051,0.86964456]
[1772275858387,0.93349233,79.079,79.044,0.86964456]
[1772275858982,0.93349233,79.077,79.044,0.86964456]
[1772275859691,44.26009761,79.078,79.04,0.2]
[1772275859692,0.93349233,79.069,79.04,0.2]
[1772275859885,0.93349233,79.059,79.04,0.2]
[1772275860086,0.93349233,79.059,79.021,0.86964456]
[1772275860496,0.93349233,79.05,79.021,0.86964456]
[1772275860897,0.93349233,79.047,79.021,0.86964456]
[1772275861103,0.93349233,79.047,79.011,0.86964456]
[1772275861306,0.93349233,79.029,79.0,6.38172671]
[1772275862986,0.93349233,79.027,78.996,56.9]
[1772275863382,0.93349233,79.027,78.995,0.86964456]
[1772275863816,0.93349233,79.019,78.988,0.86964456]
[1772275864902,0.93349233,79.017,78.988,0.86964456]
[1772275865298,12.65473434,79.022,79.001,0.86964456]
[1772275866687,0.93349233,79.022,79.001,0.86964456]
[1772275866888,0.93349233,79.022,78.971,3.69383402]
[1772275866889,0.93349233,79.009,78.981,0.86964456]
[1772275867198,0.93349233,78.999,78.971,0.86964456]
[1772275867391,0.93349233,78.999,78.961,0.86964456]
[1772275867585,0.93349233,78.997,78.961,0.86964456]
[1772275867790,0.93349233,78.989,78.954,0.86964456]
[1772275868907,0.93349233,78.987,78.961,0.86964456]
[1772275870405,12.66047147,78.986,78.961,0.86964456]
[1772275870585,0.92620694,78.985,78.961,0.86964456]
[1772275870990,0.92620694,78.985,78.954,0.87668818]
[1772275871385,0.92620694,78.979,78.947,0.87668818]
[1772275871617,0.92620694,78.969,78.94,18.23468038]
[1772275871794,0.92620694,78.969,78.941,0.87668818]
[1772275872304,0.92620694,78.959,78.934,0.87668818]
[1772275872502,12.66431086,78.963,78.941,0.87668818]
[1772275872688,63.30235737,78.986,78.93,0.2]
[1772275872689,12.66255555,78.973,78.951,0.87668818]
[1772275874409,0.92620694,78.979,78.951,0.87668818]
[1772275875807,0.92620694,79.0,78.97,17.1579922]
[1772275876112,0.92620694,79.0,78.98,17.1579922]
[1772275877010,0.75999999,79.013,78.973,12.6625345]
[1772275877011,0.94859083,79.011,78.99,17.1579922]
[1772275877204,0.94859083,79.011,78.98,17.1579922]
[1772275878011,0.94859083,79.009,78.98,17.1579922]
[1772275878517,0.94859083,79.009,78.99,17.1579922]
[1772275878916,0.94859083,79.009,78.98,17.1579922]
[1772275879698,0.94859083,79.009,78.99,17.1579922]
[1772275880098,0.94859083,79.007,78.962,12.66431954]
[1772275880295,0.94859083,79.007,78.98,17.1579922]
[1772275881098,0.94859083,79.007,78.912,7.4]
[1772275881099,0.94859083,78.989,78.95,17.1579922]
[1772275881299,0.94859083,78.989,78.931,12.66929343]
[1772275881300,0.94859083,78.989,78.96,17.1579922]
[1772275882006,0.94859083,78.987,78.96,17.1579922]
[1772275882719,0.94859083,78.981,78.95,17.1579922]
[1772275884314,0.94859083,78.979,78.95,17.1579922]
[1772275885318,12.66079375,78.984,78.97,17.1548099]
[1772275885627,0.94859083,78.983,78.96,17.1548099]
[1772275886399,0.94859083,78.981,78.96,17.1548099]
[1772275886619,0.94859083,78.981,78.95,12.66610322]
[1772275886620,0.94859083,78.981,78.95,17.1548099]
[1772275887724,0.94859083,79.008,78.97,17.1548099]
[1772275887907,0.94859083,79.008,78.99,17.1548099]
[1772275888726,0.75999999,79.013,78.967,0.02121306]
[1772275888727,0.94859083,79.006,78.967,0.02121306]
[1772275888922,0.94859083,79.006,78.97,17.1548099]
[1772275889227,0.94859083,79.006,78.98,17.1548099]
[1772275889927,0.94859083,79.006,78.99,17.1548099]
[1772275890114,12.65710633,79.007,79.0,17.1548099]
[1772275890526,0.28432314,79.026,79.0,17.1548099]
[1772275890726,102.58432314,79.026,78.99,17.1548099]
[1772275891024,102.58432314,79.026,78.984,0.29215862]
[1772275891025,102.58432314,79.026,79.0,17.1548099]
[1772275892008,0.92620694,79.021,79.0,17.1548099]
[1772275892404,0.92620694,79.019,79.0,17.1548099]
[1772275893230,12.65502404,79.02,79.001,0.30189628]
[1772275893407,0.92620694,79.019,78.99,17.1548099]
[1772275894415,0.92620694,79.017,78.984,0.30426119]
[1772275894621,0.92620694,79.017,78.99,17.1548099]
[1772275896328,0.92620694,79.015,78.99,17.1548099]
[1772275896518,0.92620694,79.015,78.99,17.46378424]
[1772275896715,12.65566467,79.016,79.0,17.1548099]
[1772275897042,12.65566467,79.016,78.991,0.30897434]
[1772275897354,13.58187161,79.016,78.991,0.30897434]
[1772275897512,13.58187161,79.016,79.0,17.1548099]
[1772275897912,13.58187161,79.016,78.981,12.66114921]
[1772275897913,12.65422334,79.025,79.01,17.1548099]
[1772275900039,0.92620694,79.024,79.01,17.1548099]
[1772275900234,0.14216157,79.021,78.97,0.31808016]
[1772275900443,0.92761486,79.009,78.968,0.32029162]
[1772275900640,0.92761486,79.009,78.98,17.1548099]
[1772275900819,0.92761486,79.007,78.98,17.1548099]
[1772275902120,0.92972076,79.001,78.97,17.1548099]
[1772275902347,0.28432314,78.999,78.951,0.32463864]
[1772275902525,17.1548099,79.0,78.951,0.32463864]
[1772275902526,0.92972076,78.992,78.96,17.1548099]
[1772275903032,0.92972076,78.99,78.96,17.1548099]
[1772275904736,0.92972076,78.988,78.96,17.1548099]
[1772275905716,0.92972076,78.988,78.938,35.36392667]
[1772275905717,0.92972076,78.982,78.95,17.1548099]
[1772275906844,0.92972076,78.972,78.95,17.1548099]
[1772275907140,0.92972076,78.972,78.94,17.1548099]
[1772275907622,44.31894444,78.973,78.93,17.3548099]
[1772275907623,0.92972076,78.964,78.93,17.3548099]
[1772275907821,17.1548099,78.97,78.93,17.3548099]
[1772275907822,0.92972076,78.962,78.93,17.3548099]
[1772275908227,0.92972076,78.952,78.93,17.3548099]
[1772275909046,12.66608402,78.951,78.93,17.3548099]
[1772275910036,0.92972076,78.966,78.94,17.1548099]
[1772275910237,0.92972076,78.962,78.94,17.1548099]
[1772275910834,0.92972076,78.962,78.93,17.3548099]
[1772275911039,0.92972076,78.96,78.93,17.3548099]
[1772275912132,0.92972076,78.96,78.931,0.40144546]
[1772275912335,0.92972076,78.96,78.94,17.1548099]
[1772275912942,0.92972076,78.958,78.94,17.1548099]
[1772275913140,31.65708917,78.972,78.94,17.1548099]
[1772275913141,0.92972076,78.97,78.94,17.1548099]
[1772275913340,0.92972076,78.97,78.93,0.2]
[1772275913341,0.28432314,78.965,78.93,17.3548099]
[1772275913638,0.92972076,78.962,78.93,17.3548099]
[1772275915126,0.92972076,78.96,78.93,17.3548099]
[1772275916427,0.92972076,78.959,78.93,0.2]
[1772275917339,0.92972076,78.953,78.92,17.3548099]
[1772275917537,0.92972076,78.949,78.92,17.3548099]
[1772275918743,0.92972076,78.956,78.93,17.1548099]
[1772275919642,0.92972076,78.954,78.93,17.1548099]
[1772275920353,12.66544234,78.955,78.94,17.1548099]
[1772275921337,12.66544234,78.955,78.931,0.40144504]
[1772275921533,0.92972076,78.958,78.931,0.40144504]
[1772275921738,12.66416274,78.963,78.94,17.1548099]
[1772275921956,0.92972076,78.962,78.934,0.40133823]
[1772275922158,0.92972076,78.962,78.94,17.1548099]
[1772275923349,12.66447993,78.961,78.94,17.1548099]
[1772275923557,12.66447993,78.961,78.94,17.55588981]
[1772275924842,0.92972076,78.96,78.94,17.1548099]
[1772275925844,13.59452147,78.959,78.94,17.1548099]
[1772275926866,0.92972076,78.959,78.94,17.1548099]
[1772275929146,12.66402516,78.964,78.942,0.40018303]
[1772275931448,102.3,78.979,78.951,0.40099125]
[1772275931648,12.66035942,78.987,78.97,17.1548099]
[1772275932644,102.3,78.99,78.97,17.1548099]
[1772275933645,12.65999063,78.989,78.97,17.1548099]
[1772275933849,12.65999063,78.989,78.971,0.40042344]
[1772275935978,12.65999063,78.989,78.97,6.40321131]
[1772275939171,12.65999063,78.989,78.97,6.80200141]
[1772275940784,0.95314532,78.988,78.97,6.40321131]
[1772275941680,12.65999063,78.989,78.971,0.39767051]
[1772275943863,0.95314532,78.988,78.97,6.40321131]
[1772275944476,12.65999063,78.989,78.971,0.3987483]
[1772275944879,102.3,78.99,78.971,0.3987483]
[1772275945188,101.9012517,78.99,78.98,6.40321131]
[1772275945365,12.65835847,79.0,78.98,6.4022516]
[1772275946076,1.01374497,79.003,78.98,6.4022516]
[1772275947273,1.01374497,79.003,78.976,12.66199545]
[1772275947475,1.01374497,79.003,78.97,6.4022516]
[1772275948086,1.01374497,79.001,78.97,19.06515355]
[1772275949071,1.01374497,79.001,78.98,6.4022516]
[1772275950092,1.01374497,78.999,78.98,6.4022516]
[1772275950892,1.01374497,78.999,78.976,12.66191891]
[1772275951270,12.65854831,78.998,78.971,12.66287624]
[1772275952490,12.65854831,78.998,78.98,6.4022516]
[1772275953383,0.95314532,79.008,78.98,6.4022516]
[1772275953691,0.95314532,79.008,78.98,19.0636212]
[1772275954395,0.95314532,79.008,78.99,6.4022516]
[1772275956489,0.95314532,79.006,78.984,0.51389126]
[1772275956671,0.95314532,79.006,78.983,12.66094082]
[1772275957073,0.95314532,79.006,78.971,12.66287624]
[1772275957272,0.95314532,79.006,78.972,0.51484897]
[1772275957485,0.95314532,79.006,78.98,6.4022516]
[1772275957883,0.95314532,79.004,78.98,6.4022516]
[1772275958082,0.95314532,79.004,78.981,13.17612193]
[1772275958289,12.65742674,79.005,78.982,0.51484897]
[1772275959591,0.95314532,79.004,78.982,0.51484897]
[1772275960174,0.45314532,79.004,78.982,0.51484897]
[1772275960694,0.45314532,79.004,78.984,0.9610226]
[1772275960891,12.65742674,79.005,78.984,0.9610226]
[1772275961697,0.28432314,79.017,78.983,12.66095235]
[1772275961890,0.28432314,79.015,78.983,12.66095235]
[1772275962097,0.93967465,79.012,78.983,12.66095235]
[1772275962296,0.93471528,79.01,78.983,12.66095235]
[1772275965903,0.93471528,79.008,78.983,12.66095235]
[1772275968885,0.93471528,79.006,78.984,0.93033317]
[1772275969606,0.93471528,79.006,78.971,0.93033317]
[1772275971701,0.93471528,79.004,78.981,0.93033317]
[1772275975408,0.93471528,79.004,78.983,0.93033317]
[1772275980808,12.6577442,79.004,78.983,0.93033317]
[1772275981002,1.03149879,79.003,78.983,0.93033317]
[1772275981811,1.03149879,79.003,78.98,6.4022516]
[1772275982014,1.03149879,79.003,78.978,0.98964093]
[1772275982217,1.03149879,79.003,78.974,0.98964093]
[1772275982523,1.03149879,79.003,78.981,0.98964093]
[1772275984413,1.03149879,79.003,78.982,12.66111265]
[1772275984726,1.03149879,79.003,78.982,13.65075358]
[1772275987928,1.03149879,79.003,78.983,0.98964093]
[1772275988508,1.03149879,79.003,78.985,0.98964093]
[1772275991109,0.97874916,79.005,78.985,0.98964093]
[1772275991422,0.1,79.04,78.992,1.00658745]
[1772275991423,0.97874916,79.03,78.992,1.00658745]
[1772275991719,0.97874916,79.03,79.011,1.00658745]
[1772275993520,0.97874916,79.03,79.013,1.00658745]
[1772275993725,23.33185246,79.033,79.013,1.00658745]
[1772275994323,0.97874916,79.032,79.013,1.00658745]
[1772275995720,23.33185246,79.033,79.013,1.00658745]
[1772275995923,0.97874916,79.031,79.013,1.00658745]
[1772275996121,0.97874916,79.031,78.965,63.21148315]
[1772275996122,0.97874916,79.029,79.001,1.00658745]
[1772275997724,0.97874916,79.027,79.001,1.00658745]
[1772275998607,0.97874916,79.027,79.003,1.00658745]
[1772275999011,31.62520825,79.051,79.022,0.96647271]
[1772275999220,12.65022137,79.05,79.022,0.96647271]
[1772275999915,0.97874916,79.049,79.023,0.96552208]
[1772276000105,12.64878128,79.059,79.031,0.96552208]
[1772276000106,0.97874916,79.058,79.031,0.96552208]
[1772276001637,0.97874916,79.058,79.03,6.4022516]
[1772276001638,0.97874916,79.056,79.033,0.9637303]
[1772276002477,12.64910128,79.057,79.021,0.96276591]
[1772276002478,0.97874916,79.049,79.021,0.96276591]
[1772276003515,0.97874916,79.047,79.021,0.96276591]
[1772276004121,12.65054144,79.048,79.021,0.96276591]
[1772276004321,0.97874916,79.055,79.031,0.96281923]
[1772276004723,0.97874916,79.055,79.03,7.36507083]
[1772276004935,0.97874916,79.055,79.04,6.4022516]
[1772276005113,0.97874916,79.061,79.041,0.96281923]
[1772276005315,0.97874916,79.063,79.041,0.96281923]
[1772276005524,0.97874916,79.063,79.041,12.65166179]
[1772276007016,0.97874916,79.059,79.02,32.6015698]